fUST/lending_fUST_20240218
["ID","MTS","AMOUNT","RATE_DAILY","PERIOD"]
[314336966,1708195838945,-672.12,0.00027959,2]
[314336967,1708195838955,-583.77,0.00027959,2]
[314336968,1708195838966,-513.06,0.00027959,2]
[314336969,1708195838976,-154.98450155,0.00028,2]
[314336970,1708195838985,-607.68394493,0.00028036,2]
[314336971,1708195838996,-3419.42,0.00028216,2]
[314336972,1708195839006,-2858.77,0.00028216,2]
[314336973,1708195839015,-500.0,0.00028216,2]
[314336974,1708195839025,-500.0,0.00028216,2]
[314336975,1708195839034,-923.37,0.00028217,2]
[314336976,1708195839043,-500.0,0.00028217,2]
[314336977,1708195839052,-500.0,0.00028217,2]
[314336978,1708195839062,-223.7581717,0.00028217,2]
[314336979,1708195839071,-561.44,0.00028217,2]
[314336980,1708195839080,-559.03,0.00028217,2]
[314336981,1708195839089,-500.0,0.00028217,2]
[314336982,1708195839099,-500.0,0.00028217,2]
[314336983,1708195839108,-500.0,0.00028217,2]
[314336984,1708195839118,-500.0,0.00028217,2]
[314336985,1708195839127,-500.0,0.00028232,2]
[314336986,1708195839136,-500.0,0.00028232,2]
[314336987,1708195839146,-579.718356,0.00028232,2]
[314336988,1708195839155,-500.0,0.00028232,2]
[314336989,1708195839164,-1000.0,0.00028232,2]
[314336990,1708195839173,-201.60546379,0.00028233,2]
[314336991,1708195839182,-500.0,0.00028233,2]
[314336992,1708195839191,-539.16,0.00028233,2]
[314336993,1708195839200,-500.0,0.00028233,2]
[314336994,1708195839210,-500.0,0.00028233,2]
[314336995,1708195839220,-3199.95,0.00028233,2]
[314336996,1708195839229,-4660.69,0.00028233,2]
[314336997,1708195839238,-500.0,0.00028233,2]
[314336998,1708195839247,-500.0,0.00028233,2]
[314336999,1708195839256,-500.0,0.00028233,2]
[314337000,1708195839265,-500.0,0.00028233,2]
[314337001,1708195839274,-500.0,0.00028233,2]
[314337002,1708195839283,-915.37,0.00028233,2]
[314337003,1708195839293,-500.0,0.00028233,2]
[314337004,1708195839302,-868.5,0.00028233,2]
[314337005,1708195839311,-2541.44,0.00028233,2]
[314337006,1708195839320,-2852.6,0.00028233,2]
[314337007,1708195839329,-4194.72,0.00028233,2]
[314337008,1708195839338,-751.21,0.00028233,2]
[314337009,1708195839347,-500.0,0.00028233,2]
[314337010,1708195839356,-500.0,0.00028233,2]
[314337011,1708195839366,-529.36,0.00028233,2]
[314337012,1708195839375,-500.0,0.00028233,2]
[314337013,1708195839384,-500.0,0.00028233,2]
[314337014,1708195839393,-508.37,0.00028233,2]
[314337015,1708195839402,-672.12,0.00028233,2]
[314337016,1708195839411,-583.77,0.00028233,2]
[314337017,1708195839420,-513.06,0.00028233,2]
[314337018,1708195839429,-3419.42,0.0002849,2]
[314337019,1708195839439,-2858.77,0.0002849,2]
[314337020,1708195839448,-500.0,0.0002849,2]
[314337021,1708195839458,-500.0,0.0002849,2]
[314337022,1708195839467,-923.37,0.00028491,2]
[314337023,1708195839476,-500.0,0.00028491,2]
[314337024,1708195839485,-500.0,0.00028491,2]
[314337025,1708195839494,-561.44,0.00028491,2]
[314337026,1708195839503,-559.03,0.00028491,2]
[314337027,1708195839512,-500.0,0.00028491,2]
[314337028,1708195839521,-500.0,0.00028491,2]
[314337029,1708195839530,-500.0,0.00028491,2]
[314337030,1708195839539,-500.0,0.00028491,2]
[314337031,1708195839549,-500.0,0.00028506,2]
[314337032,1708195839558,-500.0,0.00028506,2]
[314337033,1708195839568,-500.0,0.00028506,2]
[314337034,1708195839577,-500.0,0.00028507,2]
[314337035,1708195839587,-500.0,0.00028507,2]
[314337036,1708195839597,-500.0,0.00028507,2]
[314337037,1708195839606,-3199.95,0.00028507,2]
[314337038,1708195839615,-4660.69,0.00028507,2]
[314337039,1708195839625,-500.0,0.00028507,2]
[314337040,1708195839634,-500.0,0.00028507,2]
[314337041,1708195839643,-500.0,0.00028507,2]
[314337042,1708195839653,-500.0,0.00028507,2]
[314337043,1708195839663,-500.0,0.00028507,2]
[314337044,1708195839673,-915.37,0.00028507,2]
[314337045,1708195839682,-500.0,0.00028507,2]
[314337046,1708195839691,-868.5,0.00028507,2]
[314337047,1708195839701,-2541.44,0.00028507,2]
[314337048,1708195839710,-2852.6,0.00028507,2]
[314337049,1708195839719,-4194.72,0.00028507,2]
[314337050,1708195839728,-751.21,0.00028507,2]
[314337051,1708195839738,-500.0,0.00028507,2]
[314337052,1708195839747,-500.0,0.00028507,2]
[314337053,1708195839756,-529.36,0.00028507,2]
[314337054,1708195839766,-500.0,0.00028507,2]
[314337055,1708195839775,-500.0,0.00028507,2]
[314337056,1708195839785,-508.37,0.00028507,2]
[314337057,1708195839794,-672.12,0.00028507,2]
[314337058,1708195839803,-583.77,0.00028507,2]
[314337059,1708195839813,-513.06,0.00028507,2]
[314337060,1708195839822,-3419.42,0.00028764,2]
[314337061,1708195839831,-2858.77,0.00028764,2]
[314337062,1708195839841,-500.0,0.00028764,2]
[314337063,1708195839850,-500.0,0.00028764,2]
[314337064,1708195839860,-923.37,0.00028765,2]
[314337065,1708195839873,-500.0,0.00028765,2]
[314337066,1708195839882,-561.44,0.00028765,2]
[314337067,1708195839891,-559.03,0.00028765,2]
[314337068,1708195839900,-500.0,0.00028765,2]
[314337069,1708195839910,-500.0,0.00028765,2]
[314337070,1708195839919,-500.0,0.00028765,2]
[314337071,1708195839928,-500.0,0.0002878,2]
[314337072,1708195839938,-500.0,0.0002878,2]
[314337073,1708195839948,-500.0,0.00028781,2]
[314337074,1708195839958,-500.0,0.00028781,2]
[314337075,1708195839967,-500.0,0.00028781,2]
[314337076,1708195839976,-3199.95,0.00028781,2]
[314337077,1708195839985,-4660.69,0.00028781,2]
[314337078,1708195839994,-643.24,0.00028781,2]
[314337079,1708195840003,-500.0,0.00028781,2]
[314337080,1708195840012,-500.0,0.00028781,2]
[314337081,1708195840022,-500.0,0.00028781,2]
[314337082,1708195840031,-915.37,0.00028781,2]
[314337083,1708195840114,-500.0,0.00028781,2]
[314337084,1708195840123,-868.5,0.00028781,2]
[314337085,1708195840133,-2541.44,0.00028781,2]
[314337086,1708195840142,-2852.6,0.00028781,2]
[314337087,1708195840151,-4194.72,0.00028781,2]
[314337088,1708195840160,-751.21,0.00028781,2]
[314337089,1708195840169,-500.0,0.00028781,2]
[314337090,1708195840178,-500.0,0.00028781,2]
[314337091,1708195840187,-529.36,0.00028781,2]
[314337092,1708195840195,-500.0,0.00028781,2]
[314337093,1708195840204,-500.0,0.00028781,2]
[314337094,1708195840214,-508.37,0.00028781,2]
[314337095,1708195840223,-672.12,0.00028781,2]
[314337096,1708195840232,-583.77,0.00028781,2]
[314337097,1708195840241,-513.06,0.00028781,2]
[314337099,1708195840250,-3419.42,0.00029038,2]
[314337100,1708195840259,-2858.77,0.00029038,2]
[314337101,1708195840269,-500.0,0.00029038,2]
[314337102,1708195840277,-500.0,0.00029038,2]
[314337103,1708195840287,-923.37,0.00029039,2]
[314337104,1708195840296,-561.44,0.00029039,2]
[314337105,1708195840305,-559.03,0.00029039,2]
[314337106,1708195840314,-500.0,0.00029039,2]
[314337108,1708195840323,-500.0,0.00029039,2]
[314337110,1708195840332,-500.0,0.00029054,2]
[314337111,1708195840341,-500.0,0.00029054,2]
[314337112,1708195840350,-444.8,0.00029055,2]
[314337113,1708195840359,-500.0,0.00029055,2]
[314337114,1708195840368,-500.0,0.00029055,2]
[314337115,1708195840378,-3199.95,0.00029055,2]
[314337116,1708195840387,-4660.69,0.00029055,2]
[314337117,1708195840396,-500.0,0.00029055,2]
[314337118,1708195840405,-500.0,0.00029055,2]
[314337119,1708195840414,-500.0,0.00029055,2]
[314337120,1708195840423,-915.37,0.00029055,2]
[314337121,1708195840432,-500.0,0.00029055,2]
[314337122,1708195840442,-868.5,0.00029055,2]
[314337123,1708195840451,-2541.44,0.00029055,2]
[314337124,1708195840461,-2852.6,0.00029055,2]
[314337125,1708195840470,-4194.72,0.00029055,2]
[314337126,1708195840481,-751.21,0.00029055,2]
[314337127,1708195840490,-500.0,0.00029055,2]
[314337128,1708195840499,-500.0,0.00029055,2]
[314337129,1708195840508,-529.36,0.00029055,2]
[314337130,1708195840517,-500.0,0.00029055,2]
[314337131,1708195840526,-500.0,0.00029055,2]
[314337132,1708195840535,-508.37,0.00029055,2]
[314337133,1708195840544,-672.12,0.00029055,2]
[314337134,1708195840553,-583.77,0.00029055,2]
[314337135,1708195840562,-513.06,0.00029055,2]
[314337136,1708195840570,-3419.42,0.00029312,2]
[314337137,1708195840579,-2858.77,0.00029312,2]
[314337138,1708195840588,-500.0,0.00029312,2]
[314337139,1708195840598,-500.0,0.00029312,2]
[314337140,1708195840607,-923.37,0.00029313,2]
[314337141,1708195840616,-561.44,0.00029313,2]
[314337142,1708195840625,-559.03,0.00029313,2]
[314337143,1708195840634,-500.0,0.00029313,2]
[314337144,1708195840643,-500.0,0.00029313,2]
[314337145,1708195840652,-418.8145313,0.00029328,2]
[314337146,1708195840662,-500.0,0.00029328,2]
[314337147,1708195840671,-500.0,0.00029329,2]
[314337148,1708195840680,-424.4656152,0.00029329,2]
[314337149,1708195840690,-3199.95,0.00029329,2]
[314337150,1708195840699,-4660.69,0.00029329,2]
[314337151,1708195840709,-500.0,0.00029329,2]
[314337152,1708195840718,-500.0,0.00029329,2]
[314337153,1708195840727,-500.0,0.00029329,2]
[314337154,1708195840737,-915.37,0.00029329,2]
[314337155,1708195840746,-500.0,0.00029329,2]
[314337156,1708195840755,-868.5,0.00029329,2]
[314337157,1708195840764,-2541.44,0.00029329,2]
[314337158,1708195840774,-2852.6,0.00029329,2]
[314337159,1708195840783,-4194.72,0.00029329,2]
[314337160,1708195840793,-751.21,0.00029329,2]
[314337161,1708195840802,-500.0,0.00029329,2]
[314337162,1708195840811,-500.0,0.00029329,2]
[314337163,1708195840821,-529.36,0.00029329,2]
[314337164,1708195840831,-500.0,0.00029329,2]
[314337165,1708195840840,-500.0,0.00029329,2]
[314337166,1708195840850,-508.37,0.00029329,2]
[314337167,1708195840860,-672.12,0.00029329,2]
[314337168,1708195840877,-583.77,0.00029329,2]
[314337169,1708195840889,-513.06,0.00029329,2]
[314337170,1708195840898,-155.0,0.00029408,2]
[314337171,1708195840907,-3419.42,0.00029586,2]
[314337172,1708195840917,-2858.77,0.00029586,2]
[314337173,1708195840927,-500.0,0.00029586,2]
[314337174,1708195840936,-500.0,0.00029586,2]
[314337175,1708195840945,-923.37,0.00029587,2]
[314337176,1708195840955,-561.44,0.00029587,2]
[314337177,1708195840964,-559.03,0.00029587,2]
[314337178,1708195840974,-500.0,0.00029587,2]
[314337179,1708195840983,-500.0,0.00029587,2]
[314337180,1708195840992,-306.0,0.00029589,2]
[314337181,1708195841001,-500.0,0.00029602,2]
[314337182,1708195841010,-500.0,0.00029603,2]
[314337183,1708195841019,-3199.95,0.00029603,2]
[314337184,1708195841028,-4660.69,0.00029603,2]
[314337185,1708195841037,-500.0,0.00029603,2]
[314337186,1708195841046,-915.37,0.00029603,2]
[314337187,1708195841055,-868.5,0.00029603,2]
[314337188,1708195841064,-2541.44,0.00029603,2]
[314337189,1708195841074,-2852.6,0.00029603,2]
[314337190,1708195841083,-4194.72,0.00029603,2]
[314337191,1708195841092,-751.21,0.00029603,2]
[314337192,1708195841102,-500.0,0.00029603,2]
[314337193,1708195841111,-500.0,0.00029603,2]
[314337194,1708195841120,-529.36,0.00029603,2]
[314337195,1708195841129,-500.0,0.00029603,2]
[314337196,1708195841139,-500.0,0.00029603,2]
[314337197,1708195841148,-508.37,0.00029603,2]
[314337199,1708195841157,-672.12,0.00029603,2]
[314337201,1708195841166,-583.77,0.00029603,2]
[314337203,1708195841175,-513.06,0.00029603,2]
[314337205,1708195841184,-3419.42,0.0002986,2]
[314337206,1708195841193,-2858.77,0.0002986,2]
[314337207,1708195841203,-500.0,0.0002986,2]
[314337209,1708195841212,-500.0,0.0002986,2]
[314337211,1708195841221,-923.37,0.00029861,2]
[314337213,1708195841230,-561.44,0.00029861,2]
[314337214,1708195841239,-559.03,0.00029861,2]
[314337215,1708195841248,-405.53960382,0.00029861,2]
[314337216,1708195841257,-500.0,0.00029861,2]
[314337217,1708195841266,-500.0,0.00029876,2]
[314337218,1708195841275,-500.0,0.00029877,2]
[314337219,1708195841285,-3199.95,0.00029877,2]
[314337220,1708195841294,-4660.69,0.00029877,2]
[314337221,1708195841303,-500.0,0.00029877,2]
[314337222,1708195841312,-915.37,0.00029877,2]
[314337223,1708195841322,-868.5,0.00029877,2]
[314337224,1708195841330,-2541.44,0.00029877,2]
[314337225,1708195841339,-2852.6,0.00029877,2]
[314337226,1708195841349,-4194.72,0.00029877,2]
[314337227,1708195841358,-751.21,0.00029877,2]
[314337228,1708195841367,-500.0,0.00029877,2]
[314337230,1708195841376,-500.0,0.00029877,2]
[314337232,1708195841385,-529.36,0.00029877,2]
[314337233,1708195841394,-500.0,0.00029877,2]
[314337234,1708195841406,-500.0,0.00029877,2]
[314337235,1708195841415,-508.37,0.00029877,2]
[314337236,1708195841424,-672.12,0.00029877,2]
[314337237,1708195841433,-583.77,0.00029877,2]
[314337238,1708195841442,-513.06,0.00029877,2]
[314337239,1708195841450,-218.0282531,0.00029989,2]
[314337240,1708195841461,-159.75651966,0.0002999,5]
[314337241,1708195841470,-559.14781881,0.0002999,5]
[314337242,1708195841478,-846.42862292,0.0002999,7]
[314337243,1708195841487,-1756.155845,0.0002999,5]
[314337244,1708195841497,-1327.53728994,0.0002999,7]
[314337245,1708195841506,-223.0,0.0003,2]
[314337246,1708195841516,-3419.42,0.00030134,2]
[314337247,1708195841524,-2858.77,0.00030134,2]
[314337248,1708195841533,-500.0,0.00030134,2]
[314337249,1708195841542,-500.0,0.00030134,2]
[314337250,1708195841552,-923.37,0.00030135,2]
[314337251,1708195841561,-561.44,0.00030135,2]
[314337252,1708195841570,-559.03,0.00030135,2]
[314337253,1708195841579,-183.11041211,0.00030135,2]
[314337254,1708195841589,-500.0,0.0003015,2]
[314337255,1708195841597,-500.0,0.00030151,2]
[314337256,1708195841607,-3199.95,0.00030151,2]
[314337257,1708195841616,-4660.69,0.00030151,2]
[314337258,1708195841626,-500.0,0.00030151,2]
[314337259,1708195841635,-915.37,0.00030151,2]
[314337260,1708195841644,-868.5,0.00030151,2]
[314337261,1708195841653,-2541.44,0.00030151,2]
[314337262,1708195841663,-2852.6,0.00030151,2]
[314337263,1708195841672,-4194.72,0.00030151,2]
[314337264,1708195841682,-751.21,0.00030151,2]
[314337265,1708195841691,-500.0,0.00030151,2]
[314337266,1708195841700,-500.0,0.00030151,2]
[314337267,1708195841711,-529.36,0.00030151,2]
[314337268,1708195841720,-500.0,0.00030151,2]
[314337269,1708195841729,-500.0,0.00030151,2]
[314337270,1708195841738,-508.37,0.00030151,2]
[314337271,1708195841748,-672.12,0.00030151,2]
[314337272,1708195841757,-583.77,0.00030151,2]
[314337273,1708195841767,-513.06,0.00030151,2]
[314337274,1708195841776,-300.0,0.00030186,2]
[314337275,1708195841785,-3419.42,0.00030408,2]
[314337276,1708195841795,-2858.77,0.00030408,2]
[314337277,1708195841804,-500.0,0.00030408,2]
[314337278,1708195841814,-500.0,0.00030408,2]
[314337279,1708195841823,-923.37,0.00030409,2]
[314337280,1708195841832,-561.44,0.00030409,2]
[314337281,1708195841841,-559.03,0.00030409,2]
[314337282,1708195841850,-326.91750851,0.00030424,4]
[314337283,1708195841859,-500.0,0.00030424,2]
[314337284,1708195841870,-500.0,0.00030425,2]
[314337285,1708195841881,-3199.95,0.00030425,2]
[314337286,1708195841890,-4660.69,0.00030425,2]
[314337287,1708195841899,-500.0,0.00030425,2]
[314337288,1708195841910,-915.37,0.00030425,2]
[314337289,1708195841919,-868.5,0.00030425,2]
[314337290,1708195841928,-2541.44,0.00030425,2]
[314337291,1708195841937,-2852.6,0.00030425,2]
[314337292,1708195841947,-4194.72,0.00030425,2]
[314337293,1708195841957,-751.21,0.00030425,2]
[314337294,1708195841969,-500.0,0.00030425,2]
[314337295,1708195841979,-500.0,0.00030425,2]
[314337296,1708195841989,-529.36,0.00030425,2]
[314337297,1708195841998,-500.0,0.00030425,2]
[314337298,1708195842007,-515.91708487,0.00030425,2]
[314337299,1708195842016,-508.37,0.00030425,2]
[314337300,1708195842025,-672.12,0.00030425,2]
[314337301,1708195842034,-583.77,0.00030425,2]
[314337302,1708195842045,-513.06,0.00030425,2]
[314337303,1708195842054,-300.0,0.00030497,2]
[314337304,1708195842063,-3419.42,0.00030682,2]
[314337305,1708195842142,-2858.77,0.00030682,2]
[314337306,1708195842151,-500.0,0.00030682,2]
[314337307,1708195842161,-500.0,0.00030682,2]
[314337308,1708195842170,-103.19059322,0.00030683,4]
[314337309,1708195842180,-150.0,0.00030683,2]
[314337310,1708195842189,-923.37,0.00030683,2]
[314337311,1708195842198,-561.44,0.00030683,2]
[314337312,1708195842207,-559.03,0.00030683,2]
[314337313,1708195842219,-500.0,0.00030684,2]
[314337314,1708195842229,-309.7117813,0.00030685,2]
[314337315,1708195842238,-500.0,0.00030698,2]
[314337316,1708195842247,-160.24275126,0.00030699,3]
[314337317,1708195842256,-500.0,0.00030699,2]
[314337318,1708195842265,-3199.95,0.00030699,2]
[314337319,1708195842274,-4660.69,0.00030699,2]
[314337320,1708195842284,-500.0,0.00030699,2]
[314337321,1708195842292,-915.37,0.00030699,2]
[314337322,1708195842301,-868.5,0.00030699,2]
[314337323,1708195842310,-2541.44,0.00030699,2]
[314337324,1708195842320,-2852.6,0.00030699,2]
[314337325,1708195842329,-4194.72,0.00030699,2]
[314337327,1708195842338,-751.21,0.00030699,2]
[314337330,1708195842347,-500.0,0.00030699,2]
[314337332,1708195842356,-500.0,0.00030699,2]
[314337333,1708195842365,-529.36,0.00030699,2]
[314337334,1708195842374,-500.0,0.00030699,2]
[314337335,1708195842384,-508.37,0.00030699,2]
[314337336,1708195842393,-672.12,0.00030699,2]
[314337337,1708195842403,-583.77,0.00030699,2]
[314337338,1708195842413,-513.06,0.00030699,2]
[314337339,1708195842422,-200.0,0.00030712,15]
[314337340,1708195842431,-348.0,0.00030712,15]
[314337341,1708195842441,-155.0,0.00030778,2]
[314337342,1708195842450,-391.278602,0.00030809,2]
[314337343,1708195842459,-200.0,0.00030873,2]
[314337344,1708195842470,-1416.10014719,0.00030899,2]
[314337345,1708195842479,-150.5,0.00030928,7]
[314337346,1708195842488,-150.5,0.00030938,35]
[314337347,1708195842497,-150.5,0.00030938,7]
[314337348,1708195842506,-182.3,0.00030938,35]
[314337349,1708195842515,-150.5,0.00030948,35]
[314337350,1708195842524,-150.5,0.00030948,7]
[314337351,1708195842534,-150.5,0.00030948,35]
[314337352,1708195842543,-581.21143425,0.00030955,4]
[314337353,1708195842552,-3419.42,0.00030956,2]
[314337354,1708195842561,-2858.77,0.00030956,2]
[314337355,1708195842571,-500.0,0.00030956,2]
[314337357,1708195842580,-500.0,0.00030956,2]
[314337359,1708195842589,-923.37,0.00030957,2]
[314337360,1708195842598,-561.44,0.00030957,2]
[314337361,1708195842608,-559.03,0.00030957,2]
[314337362,1708195842617,-158.726108,0.00030959,2]
[314337363,1708195842626,-500.0,0.00030972,2]
[314337364,1708195842636,-500.0,0.00030973,2]
[314337365,1708195842645,-3199.95,0.00030973,2]
[314337366,1708195842654,-4660.69,0.00030973,2]
[314337367,1708195842665,-500.0,0.00030973,2]
[314337368,1708195842674,-915.37,0.00030973,2]
[314337369,1708195842684,-868.5,0.00030973,2]
[314337370,1708195842693,-2541.44,0.00030973,2]
[314337371,1708195842701,-2852.6,0.00030973,2]
[314337372,1708195842712,-4194.72,0.00030973,2]
[314337373,1708195842722,-751.21,0.00030973,2]
[314337374,1708195842731,-500.0,0.00030973,2]
[314337375,1708195842740,-500.0,0.00030973,2]
[314337377,1708195842749,-529.36,0.00030973,2]
[314337379,1708195842758,-500.0,0.00030973,2]
[314337380,1708195842767,-508.37,0.00030973,2]
[314337382,1708195842777,-672.12,0.00030973,2]
[314337383,1708195842786,-583.77,0.00030973,2]
[314337384,1708195842795,-513.06,0.00030973,2]
[314337385,1708195842804,-1416.10014716,0.00030979,2]
[314337386,1708195842814,-242.85,0.00030989,4]
[314337387,1708195842822,-7967.49,0.00030999,2]
[314337388,1708195842831,-7967.49,0.00030999,2]
[314337389,1708195842841,-7967.49,0.00030999,2]
[314337390,1708195842850,-7967.49,0.00030999,2]
[314337391,1708195842858,-7967.49,0.00030999,2]
[314337392,1708195842868,-7967.49,0.00030999,2]
[314337393,1708195842881,-7967.49,0.00030999,2]
[314337394,1708195842890,-7967.49,0.00030999,2]
[314337395,1708195842899,-7967.49,0.00030999,2]
[314337396,1708195842908,-7967.49,0.00030999,2]
[314337397,1708195842918,-66587.15852883,0.00031,4]
[314337398,1708195842927,-1949.59299827,0.00031,2]
[314337399,1708195842936,-20000.0,0.00031,2]
[314337400,1708195842945,-339.23925901,0.00031,2]
[314337401,1708195842956,-1000.0,0.00031,31]
[314337402,1708195842966,-5499.99999502,0.00031,2]
[314337403,1708195842975,-216.003138,0.00031,2]
[314337404,1708195842984,-216.003138,0.00031,2]
[314337405,1708195842993,-2635.95513913,0.00031,7]
[314337406,1708195843002,-467.218197,0.00031,2]
[314337407,1708195843011,-151.0,0.00031,2]
[314337408,1708195843020,-467.218197,0.00031,2]
[314337410,1708195843029,-10000.0,0.00031,7]
[314337411,1708195843038,-12914.32002687,0.00031,7]
[314337412,1708195843141,-2673.44555769,0.00031,7]
[314337413,1708195843150,-793.02625831,0.00031,7]
[314337414,1708195843159,-151.0,0.00031,2]
[314337415,1708195843168,-151.0,0.00031,2]
[314337416,1708195843177,-1416.10014716,0.00031059,2]
[314337417,1708195843186,-149.5792072,0.00031139,2]
[314337418,1708195843197,-1128.57149724,0.00031139,2]
[314337419,1708195843208,-137.94944272,0.00031139,2]
[314337420,1708195843219,-152.36668215,0.00031172,7]
[314337421,1708195843228,-991.47227563,0.00031219,2]
[314337422,1708195843317,-424.62787153,0.00031219,2]
[314337423,1708195843326,-3419.42,0.0003123,2]
[314337424,1708195843335,-2858.77,0.0003123,2]
[314337425,1708195843345,-500.0,0.0003123,2]
[314337426,1708195843355,-500.0,0.0003123,2]
[314337427,1708195843364,-198.59492847,0.00031231,2]
[314337428,1708195843425,-500.0,0.00027685,2]
[314337429,1708195843435,-724.77507153,0.00031231,2]
[314337430,1708195843443,-561.44,0.00031231,2]
[314337431,1708195843452,-559.03,0.00031231,2]
[314337432,1708195843463,-561.21145991,0.00031246,2]
[314337433,1708195843472,-500.0,0.00031247,2]
[314337434,1708195843481,-4660.69,0.00031247,2]
[314337435,1708195843490,-500.0,0.00031247,2]
[314337436,1708195843498,-915.37,0.00031247,2]
[314337437,1708195843508,-868.5,0.00031247,2]
[314337438,1708195843517,-2541.44,0.00031247,2]
[314337439,1708195843526,-2852.6,0.00031247,2]
[314337440,1708195843534,-4194.72,0.00031247,2]
[314337441,1708195843544,-751.21,0.00031247,2]
[314337442,1708195843554,-500.0,0.00031247,2]
[314337443,1708195843563,-500.0,0.00031247,2]
[314337444,1708195843573,-529.36,0.00031247,2]
[314337445,1708195843582,-500.0,0.00031247,2]
[314337446,1708195843591,-508.37,0.00031247,2]
[314337447,1708195843601,-672.12,0.00031247,2]
[314337448,1708195843610,-583.77,0.00031247,2]
[314337449,1708195843620,-513.06,0.00031247,2]
[314337450,1708195843629,-50000.0,0.00031254,7]
[314337451,1708195843638,-216.003138,0.00031254,2]
[314337452,1708195843648,-216.003138,0.00031254,2]
[314337453,1708195843657,-467.218197,0.00031254,2]
[314337454,1708195843667,-151.0,0.00031254,2]
[314337455,1708195843676,-467.218197,0.00031254,2]
[314337456,1708195843686,-151.0,0.00031254,2]
[314337457,1708195843695,-151.0,0.00031254,2]
[314337458,1708195843706,-1416.10014716,0.00031298,2]
[314337459,1708195843717,-1416.10014716,0.00031378,2]
[314337460,1708195843726,-150.5,0.0003145,35]
[314337461,1708195843735,-161.15067175,0.00031453,7]
[314337462,1708195843745,-1416.10014716,0.00031458,2]
[314337463,1708195843754,-150.5,0.0003146,35]
[314337464,1708195843763,-150.5,0.0003147,35]
[314337465,1708195843772,-3419.42,0.00031504,2]
[314337466,1708195843781,-2858.77,0.00031504,2]
[314337467,1708195843790,-500.0,0.00031504,2]
[314337468,1708195843800,-500.0,0.00031504,2]
[314337469,1708195843809,-923.37,0.00031505,2]
[314337470,1708195843818,-561.44,0.00031505,2]
[314337471,1708195843827,-559.03,0.00031505,2]
[314337472,1708195843836,-155.0,0.00031507,2]
[314337473,1708195843846,-500.0,0.00031521,2]
[314337474,1708195843927,-4660.69,0.00031521,2]
[314337475,1708195843938,-500.0,0.00031521,2]
[314337476,1708195843948,-915.37,0.00031521,2]
[314337477,1708195843957,-868.5,0.00031521,2]
[314337478,1708195843967,-2541.44,0.00031521,2]
[314337479,1708195843976,-2852.6,0.00031521,2]
[314337480,1708195843985,-4194.72,0.00031521,2]
[314337481,1708195843994,-751.21,0.00031521,2]
[314337482,1708195844003,-500.0,0.00031521,2]
[314337483,1708195844012,-500.0,0.00031521,2]
[314337484,1708195844022,-529.36,0.00031521,2]
[314337485,1708195844030,-500.0,0.00031521,2]
[314337486,1708195844041,-508.37,0.00031521,2]
[314337487,1708195844050,-672.12,0.00031521,2]